fUST/lending_fUST_20240226
["ID","MTS","AMOUNT","RATE_DAILY","PERIOD"]
[315187143,1708913447038,-501.71675449,0.00019726,2]
[315187144,1708913447048,-500.0,0.00019726,2]
[315187145,1708913447057,-501.18590422,0.00019726,2]
[315187146,1708913447067,-500.85128667,0.00019726,2]
[315187147,1708913447076,-741.97,0.00019726,2]
[315187148,1708913447086,-500.0,0.00019726,2]
[315187149,1708913447095,-500.0,0.00019726,2]
[315187150,1708913447105,-501.95527175,0.00019726,2]
[315187151,1708913447114,-500.0,0.00019726,2]
[315187152,1708913447123,-500.0,0.00019726,2]
[315187153,1708913447133,-1490.22,0.00019726,2]
[315187154,1708913447143,-500.0,0.00019726,2]
[315187155,1708913447153,-500.0,0.00019726,2]
[315187156,1708913447162,-500.0,0.00019726,2]
[315187157,1708913447172,-2630.39,0.00019726,2]
[315187158,1708913447181,-500.0,0.00019726,2]
[315187159,1708913447191,-500.0,0.00019726,2]
[315187160,1708913447200,-963.98,0.00019726,2]
[315187161,1708913447210,-11205.06,0.00019726,2]
[315187162,1708913447219,-500.0,0.00019726,2]
[315187163,1708913447229,-3004.16,0.00019726,2]
[315187164,1708913447239,-1989.64,0.00019726,2]
[315187165,1708913447248,-500.0,0.00019726,2]
[315187166,1708913447257,-500.0,0.00019726,2]
[315187167,1708913447267,-500.0,0.00019726,2]
[315187168,1708913447276,-4192.08,0.00019726,2]
[315187169,1708913447285,-249.10033961,0.00019726,2]
[315187170,1708913447295,-796.72,0.00019726,2]
[315187171,1708913447308,-501.85263397,0.00019726,2]
[315187172,1708913447318,-500.0,0.00019726,2]
[315187173,1708913447327,-487.01483259,0.00019726,2]
[315187174,1708913447338,-500.0,0.00019726,2]
[315187175,1708913447347,-1000.0,0.00019726,2]
[315187176,1708913447357,-500.0,0.00019726,2]
[315187177,1708913447366,-500.0,0.00019726,2]
[315187178,1708913447375,-1982.26,0.00019726,2]
[315187179,1708913447386,-500.0,0.00019726,2]
[315187180,1708913447397,-500.0,0.00019726,2]
[315187181,1708913447406,-500.0,0.00019726,2]
[315187182,1708913447415,-500.0,0.00019726,2]
[315187183,1708913447424,-2159.87,0.00019726,2]
[315187184,1708913447433,-500.0,0.00019726,2]
[315187185,1708913447442,-500.0,0.00019726,2]
[315187186,1708913447451,-22518.89,0.00019726,2]
[315187187,1708913447460,-500.81546176,0.00019726,2]
[315187188,1708913447470,-436.52101816,0.00019726,2]
[315187189,1708913447479,-500.0,0.00019726,2]
[315187190,1708913447487,-500.0,0.00019726,2]
[315187191,1708913447497,-500.0,0.00019726,2]
[315187192,1708913447506,-500.0,0.00019726,2]
[315187193,1708913447515,-2218.67,0.00019726,2]
[315187194,1708913447524,-1005.8616059,0.00019726,2]
[315187195,1708913447533,-500.0,0.00019726,2]
[315187196,1708913447542,-500.0,0.00019726,2]
[315187197,1708913447551,-1752.81,0.00019726,2]
[315187198,1708913447560,-500.0,0.00019726,2]
[315187199,1708913447569,-500.0,0.00019726,2]
[315187200,1708913447578,-500.0,0.00019726,2]
[315187201,1708913447588,-500.0,0.00019726,2]
[315187202,1708913447597,-500.0,0.00019726,2]
[315187203,1708913447607,-803.54,0.00019726,2]
[315187204,1708913447616,-501.35044619,0.00019726,2]
[315187205,1708913447625,-500.0,0.00019726,2]
[315187206,1708913447634,-8169.46,0.00019726,2]
[315187207,1708913447644,-500.87195388,0.00019726,2]
[315187208,1708913447653,-616.05400382,0.00019726,2]
[315187209,1708913447662,-2503.81,0.00019726,2]
[315187210,1708913447671,-4559.37,0.00019726,2]
[315187211,1708913447680,-11247.4,0.00019726,2]
[315187212,1708913447689,-628.18,0.00019726,2]
[315187213,1708913447698,-500.0,0.00019726,2]
[315187214,1708913447707,-500.0,0.00019726,2]
[315187215,1708913447716,-500.0,0.00019726,2]
[315187216,1708913447726,-500.0,0.00019726,2]
[315187217,1708913447734,-3101.38,0.00019726,2]
[315187218,1708913447743,-500.0,0.00019726,2]
[315187219,1708913447780,-23305.64,0.00019726,2]
[315187220,1708913447790,-500.0,0.00019726,2]
[315187221,1708913447799,-500.0,0.00019726,2]
[315187222,1708913447809,-1255.8,0.00019726,2]
[315187223,1708913447818,-500.0,0.00019726,2]
[315187224,1708913447826,-500.0,0.00019726,2]
[315187225,1708913447835,-500.0,0.00019726,2]
[315187226,1708913447844,-500.0,0.00019726,2]
[315187227,1708913447853,-331.05449464,0.00019726,2]
[315187228,1708913447862,-3197.4,0.00019726,2]
[315187229,1708913447959,-500.0,0.00019726,2]
[315187230,1708913447979,-3348.36,0.00019726,2]
[315187231,1708913447988,-406.90252759,0.00019726,2]
[315187232,1708913447998,-590.34832418,0.00019726,2]
[315187233,1708913448006,-500.0,0.00019726,2]
[315187234,1708913448015,-500.0,0.00019726,2]
[315187235,1708913448024,-501.17195476,0.00019726,2]
[315187236,1708913448034,-500.0,0.00019726,2]
[315187237,1708913448043,-499.53437694,0.00019726,2]
[315187238,1708913448051,-1532.95,0.00019726,2]
[315187239,1708913448060,-502.09355324,0.00019726,2]
[315187240,1708913448069,-500.0,0.00019726,2]
[315187241,1708913448078,-500.0,0.00019726,2]
[315187242,1708913448087,-500.0,0.00019726,2]
[315187243,1708913448096,-2229.58,0.00019726,2]
[315187244,1708913448105,-1705.87,0.00019726,2]
[315187245,1708913448114,-380.12472515,0.00019747,2]
[315187246,1708913448123,-153.65780855,0.00019786,2]
[315187247,1708913448132,-1000.0,0.00019816,2]
[315187248,1708913448142,-1000.0,0.00019823,2]
[315187249,1708913448151,-344.8074923,0.00019836,2]
[315187250,1708913448160,-1000.0,0.00019858,2]
[315187251,1708913448169,-1000.0,0.00019881,2]
[315187252,1708913448178,-1000.0,0.00019931,2]
[315187253,1708913448187,-1000.0,0.00019936,2]
[315187254,1708913448197,-300.0,0.00019939,2]
[315187255,1708913448206,-1000.0,0.00019944,2]
[315187256,1708913448215,-472.45492363,0.00019998,2]
[315187257,1708913448224,-1454.19912563,0.00019999,2]
[315187258,1708913448234,-500.0,0.00019999,2]
[315187259,1708913448243,-500.0,0.00019999,2]
[315187260,1708913448252,-500.0,0.00019999,2]
[315187261,1708913448261,-500.0,0.00019999,2]
[315187262,1708913448271,-500.0,0.00019999,2]
[315187263,1708913448280,-500.0,0.00019999,2]
[315187264,1708913448289,-500.0,0.00019999,2]
[315187265,1708913448302,-500.0,0.00019999,2]
[315187266,1708913448311,-500.0,0.00019999,2]
[315187267,1708913448320,-338.42592376,0.00019999,2]
[315187268,1708913448330,-500.0,0.00019999,2]
[315187269,1708913448339,-500.0,0.00019999,2]
[315187270,1708913448348,-500.0,0.00019999,2]
[315187271,1708913448358,-500.0,0.00019999,2]
[315187272,1708913448367,-419.42728038,0.00019999,2]
[315187273,1708913448378,-514.38392418,0.00019999,2]
[315187274,1708913448387,-500.0,0.00019999,2]
[315187275,1708913448396,-500.0,0.00019999,2]
[315187276,1708913448406,-500.0,0.00019999,2]
[315187277,1708913448415,-500.0,0.00019999,2]
[315187278,1708913448424,-500.0,0.00019999,2]
[315187279,1708913448433,-500.0,0.00019999,2]
[315187280,1708913448442,-500.0,0.00019999,2]
[315187281,1708913448450,-500.0,0.00019999,2]
[315187282,1708913448459,-500.0,0.00019999,2]
[315187283,1708913448468,-500.0,0.00019999,2]
[315187284,1708913448477,-500.0,0.00019999,2]
[315187285,1708913448486,-500.0,0.00019999,2]
[315187286,1708913448496,-500.0,0.00019999,2]
[315187287,1708913448505,-500.0,0.00019999,2]
[315187288,1708913448514,-500.0,0.00019999,2]
[315187289,1708913448522,-500.0,0.00019999,2]
[315187290,1708913448531,-500.0,0.00019999,2]
[315187291,1708913448541,-500.0,0.00019999,2]
[315187292,1708913448549,-500.0,0.00019999,2]
[315187293,1708913448558,-500.0,0.00019999,2]
[315187294,1708913448568,-500.0,0.00019999,2]
[315187295,1708913448577,-500.0,0.00019999,2]
[315187296,1708913448585,-500.0,0.00019999,2]
[315187297,1708913448595,-500.0,0.00019999,2]
[315187298,1708913448604,-250.0,0.00019999,2]
[315187299,1708913448613,-500.0,0.00019999,2]
[315187300,1708913448622,-500.0,0.00019999,2]
[315187301,1708913448631,-500.0,0.00019999,2]
[315187302,1708913448640,-500.0,0.00019999,2]
[315187303,1708913448648,-500.0,0.00019999,2]
[315187304,1708913448657,-500.0,0.00019999,2]
[315187305,1708913448666,-500.0,0.00019999,2]
[315187306,1708913448677,-500.0,0.00019999,2]
[315187307,1708913448686,-550.0,0.00019999,2]
[315187308,1708913448695,-36730.34054507,0.0002,2]
[315187309,1708913448704,-850.0,0.0002,5]
[315187310,1708913448713,-175.5,0.0002,2]
[315187311,1708913448722,-356132.99510991,0.0002,2]
[315187312,1708913448965,-10781.96442435,0.0002,2]
[315187313,1708913448976,-2021.56381413,0.0002,2]
[315187314,1708913448986,-471657.96798833,0.0002,2]
[315187315,1708913448997,-15997.71660122,0.0002,2]
[315187316,1708913449093,-3232.05010345,0.00019078,2]
[315187317,1708913449102,-500.0,0.00019178,2]
[315187318,1708913449111,-26932.15206206,0.0002,2]
[315187319,1708913449121,-179.0,0.0002,2]
[315187320,1708913449130,-1416.0,0.0002,2]
[315187321,1708913449139,-984.71456131,0.0002,2]
[315187322,1708913449148,-750.54,0.0002,2]
[315187323,1708913449157,-500.0,0.0002,2]
[315187324,1708913449166,-500.0,0.0002,2]
[315187325,1708913449175,-500.0,0.0002,2]
[315187326,1708913449184,-500.0,0.0002,2]
[315187327,1708913449192,-500.0,0.0002,2]
[315187328,1708913449201,-500.0,0.0002,2]
[315187329,1708913449210,-511.6223273,0.0002,2]
[315187330,1708913449219,-500.0,0.0002,2]
[315187331,1708913449228,-500.0,0.0002,2]
[315187332,1708913449237,-489.08379982,0.0002,2]
[315187333,1708913449246,-1322.43,0.0002,2]
[315187334,1708913449255,-501.70449876,0.0002,2]
[315187335,1708913449264,-500.0,0.0002,2]
[315187336,1708913449274,-500.0,0.0002,2]
[315187337,1708913449283,-500.0,0.0002,2]
[315187338,1708913449292,-501.68754756,0.0002,2]
[315187339,1708913449306,-500.0,0.0002,2]
[315187340,1708913449315,-500.0,0.0002,2]
[315187341,1708913449324,-500.0,0.0002,2]
[315187342,1708913449333,-503.8969164,0.0002,2]
[315187343,1708913449342,-502.01865313,0.0002,2]
[315187344,1708913449351,-1863.06,0.0002,2]
[315187345,1708913449360,-185.27418586,0.0002,2]
[315187346,1708913449371,-1573.02,0.0002,2]
[315187347,1708913449381,-500.0,0.0002,2]
[315187348,1708913449391,-719.52,0.0002,2]
[315187349,1708913449400,-614.76,0.0002,2]
[315187350,1708913449409,-500.0,0.0002,2]
[315187351,1708913449418,-500.0,0.0002,2]
[315187352,1708913449427,-500.0,0.0002,2]
[315187353,1708913449436,-500.0,0.0002,2]
[315187354,1708913449445,-500.0,0.0002,2]
[315187355,1708913449454,-214.34815551,0.0002,2]
[315187356,1708913449462,-630.73,0.0002,2]
[315187357,1708913449472,-500.0,0.0002,2]
[315187358,1708913449481,-500.0,0.0002,2]
[315187359,1708913449490,-500.0,0.0002,2]
[315187360,1708913449500,-203.92104408,0.0002,2]
[315187361,1708913449509,-500.0,0.0002,2]
[315187362,1708913449518,-500.0,0.0002,2]
[315187363,1708913449527,-500.0,0.0002,2]
[315187364,1708913449536,-685.49,0.0002,2]
[315187365,1708913449545,-500.0,0.0002,2]
[315187366,1708913449553,-2332.52,0.0002,2]
[315187367,1708913449562,-557.78269521,0.0002,2]
[315187368,1708913449571,-500.0,0.0002,2]
[315187369,1708913449580,-300.0,0.0002,8]
[315187370,1708913449589,-1796.3,0.0002,2]
[315187371,1708913449597,-500.0,0.0002,2]
[315187372,1708913449606,-501.29954357,0.0002,2]
[315187373,1708913449615,-500.0,0.0002,2]
[315187374,1708913449624,-605.96442716,0.0002,2]
[315187375,1708913449715,-500.0,0.0002,2]
[315187376,1708913449725,-500.0,0.0002,2]
[315187377,1708913449733,-505.95058571,0.0002,2]
[315187378,1708913449742,-500.0,0.0002,2]
[315187379,1708913449752,-646.85521638,0.0002,2]
[315187380,1708913449761,-500.0,0.0002,2]
[315187381,1708913449770,-500.0,0.0002,2]
[315187382,1708913449779,-501.72333826,0.0002,2]
[315187383,1708913449788,-239.92493776,0.0002,2]
[315187384,1708913449797,-500.0,0.0002,2]
[315187385,1708913449806,-500.0,0.0002,2]
[315187386,1708913449814,-1019.43,0.0002,2]
[315187387,1708913449823,-152.40498538,0.0002,2]
[315187388,1708913449832,-378.09595608,0.0002,2]
[315187389,1708913449841,-551.86,0.0002,2]
[315187390,1708913449850,-500.0,0.0002,2]
[315187391,1708913449859,-500.0,0.0002,2]
[315187392,1708913449869,-500.0,0.0002,2]
[315187393,1708913449878,-741.97,0.0002,2]
[315187394,1708913449887,-500.0,0.0002,2]
[315187395,1708913449897,-500.0,0.0002,2]
[315187396,1708913449906,-500.0,0.0002,2]
[315187397,1708913449914,-500.0,0.0002,2]
[315187398,1708913449924,-1490.22,0.0002,2]
[315187399,1708913449932,-500.0,0.0002,2]
[315187400,1708913449941,-500.0,0.0002,2]
[315187401,1708913449950,-500.0,0.0002,2]
[315187402,1708913449959,-2630.39,0.0002,2]
[315187403,1708913449968,-501.30905286,0.0002,2]
[315187404,1708913449977,-500.0,0.0002,2]
[315187405,1708913449986,-963.98,0.0002,2]
[315187406,1708913449995,-11205.06,0.0002,2]
[315187407,1708913450003,-302.9137334,0.0002,2]
[315187408,1708913450013,-501.72100302,0.0002,2]
[315187409,1708913450022,-3004.16,0.0002,2]
[315187410,1708913450031,-1989.64,0.0002,2]
[315187411,1708913450040,-500.0,0.0002,2]
[315187412,1708913450048,-500.0,0.0002,2]
[315187413,1708913450057,-500.0,0.0002,2]
[315187414,1708913450067,-4192.08,0.0002,2]
[315187415,1708913450076,-796.72,0.0002,2]
[315187416,1708913450085,-500.0,0.0002,2]
[315187417,1708913450094,-500.0,0.0002,2]
[315187418,1708913450103,-1000.0,0.0002,2]
[315187419,1708913450113,-225.36072718,0.0002,2]
[315187420,1708913450122,-500.0,0.0002,2]
[315187421,1708913450131,-1982.26,0.0002,2]
[315187422,1708913450141,-500.0,0.0002,2]
[315187423,1708913450151,-500.0,0.0002,2]
[315187424,1708913450161,-500.0,0.0002,2]
[315187425,1708913450170,-504.62380034,0.0002,2]
[315187426,1708913450180,-2159.87,0.0002,2]
[315187427,1708913450190,-500.0,0.0002,2]
[315187428,1708913450200,-500.0,0.0002,2]
[315187429,1708913450209,-22518.89,0.0002,2]
[315187430,1708913450219,-292.12335644,0.0002,2]
[315187431,1708913450229,-151.0,0.0002,2]
[315187432,1708913450240,-500.0,0.0002,2]
[315187433,1708913450249,-500.0,0.0002,2]
[315187434,1708913450258,-151.0,0.0002,2]
[315187435,1708913450267,-477.80192335,0.0002,2]
[315187436,1708913450277,-2218.67,0.0002,2]
[315187437,1708913450287,-500.0,0.0002,2]
[315187438,1708913450298,-282.82728076,0.0002,2]
[315187439,1708913450308,-1752.81,0.0002,2]
[315187440,1708913450318,-500.0,0.0002,2]
[315187441,1708913450329,-500.0,0.0002,2]
[315187442,1708913450338,-308.315827,0.0002,2]
[315187443,1708913450347,-300.01901672,0.0002,2]
[315187444,1708913450357,-500.0,0.0002,2]
[315187445,1708913450366,-308.315827,0.0002,2]
[315187446,1708913450376,-500.0,0.0002,2]
[315187447,1708913450386,-803.54,0.0002,2]
[315187448,1708913450398,-505.00833293,0.0002,2]
[315187449,1708913450408,-8169.46,0.0002,2]
[315187450,1708913450417,-2503.81,0.0002,2]
[315187451,1708913450427,-4559.37,0.0002,2]
[315187452,1708913450436,-11247.4,0.0002,2]
[315187453,1708913450446,-628.18,0.0002,2]
[315187454,1708913450455,-500.0,0.0002,2]
[315187455,1708913450464,-502.36151926,0.0002,2]
[315187456,1708913450474,-501.43459561,0.0002,2]
[315187457,1708913450483,-501.78402,0.0002,2]
[315187458,1708913450493,-3101.38,0.0002,2]
[315187459,1708913450502,-500.0,0.0002,2]
[315187460,1708913450511,-23305.64,0.0002,2]
[315187461,1708913450520,-500.0,0.0002,2]
[315187462,1708913450529,-151.0,0.0002,2]
[315187463,1708913450538,-500.0,0.0002,2]
[315187464,1708913450548,-1255.8,0.0002,2]
[315187465,1708913450557,-500.0,0.0002,2]
[315187466,1708913450567,-500.0,0.0002,2]
[315187467,1708913450576,-500.0,0.0002,2]
[315187468,1708913450585,-500.0,0.0002,2]
[315187469,1708913450595,-3197.4,0.0002,2]
[315187470,1708913450606,-500.0,0.0002,2]
[315187471,1708913450615,-580.0,0.0002,2]
[315187472,1708913450624,-1452.0643,0.0002,2]
[315187473,1708913450634,-3348.36,0.0002,2]
[315187474,1708913450643,-478.11316382,0.0002,2]
[315187475,1708913450653,-500.0,0.0002,2]
[315187476,1708913450662,-500.0,0.0002,2]
[315187477,1708913450671,-1532.95,0.0002,2]
[315187478,1708913450681,-500.0,0.0002,2]
[315187479,1708913450690,-500.0,0.0002,2]
[315187480,1708913450699,-500.0,0.0002,2]
[315187481,1708913450709,-2229.58,0.0002,2]
[315187482,1708913450718,-1705.87,0.0002,2]
[315187483,1708913450727,-166.666666,0.00020076,2]
[315187484,1708913450736,-1000.0,0.00020155,2]
[315187485,1708913450746,-5000.0,0.00020155,2]
[315187486,1708913450755,-5000.0,0.00020155,2]
[315187487,1708913450764,-5000.0,0.00020155,2]
[315187488,1708913450775,-5000.0,0.00020155,2]
[315187489,1708913450784,-5000.0,0.00020155,2]
[315187490,1708913450794,-1000.0,0.00020155,2]
[315187491,1708913450803,-1000.0,0.00020155,2]
[315187492,1708913450813,-1000.0,0.00020155,2]
[315187493,1708913450824,-5000.0,0.00020155,2]
[315187494,1708913450834,-5000.0,0.00020155,2]
[315187495,1708913450845,-1000.0,0.00020155,2]
[315187496,1708913450855,-5000.0,0.00020155,2]
[315187497,1708913450865,-5000.0,0.00020155,2]
[315187498,1708913450874,-1000.0,0.00020155,2]
[315187499,1708913450883,-1000.0,0.00020155,2]
[315187500,1708913450892,-5000.0,0.00020155,2]
[315187501,1708913450901,-5000.0,0.00020155,2]
[315187502,1708913450910,-5000.0,0.00020155,2]
[315187503,1708913450919,-5000.0,0.00020155,2]
[315187504,1708913450928,-5000.0,0.00020155,2]
[315187505,1708913450937,-5000.0,0.00020155,2]
[315187506,1708913450946,-1000.0,0.00020155,2]
[315187507,1708913450956,-1000.0,0.00020155,2]
[315187508,1708913450965,-1000.0,0.00020155,2]
[315187509,1708913450974,-5000.0,0.00020155,2]
[315187510,1708913450982,-5000.0,0.00020155,2]
[315187511,1708913450991,-5000.0,0.00020155,2]
[315187512,1708913451000,-500.0,0.00020193,2]
[315187513,1708913451009,-500.0,0.00020193,2]
[315187514,1708913451018,-500.0,0.00020193,2]
[315187515,1708913451027,-500.0,0.00020193,2]
[315187516,1708913451035,-500.0,0.00020193,2]
[315187517,1708913451044,-500.0,0.00020193,2]
[315187518,1708913451053,-500.0,0.00020193,2]
[315187519,1708913451062,-500.0,0.00020193,2]
[315187520,1708913451071,-213.861249,0.00020193,2]
[315187521,1708913451080,-5000.0,0.00020194,2]
[315187522,1708913451089,-5000.0,0.00020194,2]
[315187523,1708913451097,-5000.0,0.00020194,2]
[315187524,1708913451106,-5000.0,0.00020194,2]
[315187525,1708913451115,-5000.0,0.00020194,2]
[315187526,1708913451124,-5000.0,0.00020194,2]
[315187527,1708913451133,-1000.0,0.00020194,2]
[315187528,1708913451143,-5000.0,0.00020194,2]
[315187529,1708913451152,-5000.0,0.00020194,2]
[315187530,1708913451161,-1000.0,0.00020194,2]
[315187531,1708913451170,-5000.0,0.00020194,2]
[315187532,1708913451179,-1000.0,0.00020194,2]
[315187533,1708913451189,-5000.0,0.00020194,2]
[315187534,1708913451198,-5000.0,0.00020194,2]
[315187535,1708913451208,-5000.0,0.00020194,2]
[315187536,1708913451218,-5000.0,0.00020194,2]
[315187537,1708913451227,-5000.0,0.00020194,2]
[315187538,1708913451237,-1000.0,0.00020194,2]
[315187539,1708913451247,-5000.0,0.00020194,2]
[315187540,1708913451257,-1000.0,0.00020194,2]
[315187541,1708913451267,-1000.0,0.00020194,2]
[315187542,1708913451276,-1000.0,0.00020194,2]
[315187543,1708913451286,-1000.0,0.00020194,2]
[315187544,1708913451299,-5000.0,0.00020194,2]
[315187545,1708913451309,-5000.0,0.00020194,2]
[315187546,1708913451318,-5000.0,0.00020194,2]
[315187547,1708913451327,-1000.0,0.00020194,2]
[315187548,1708913451337,-5000.0,0.00020194,2]
[315187549,1708913451346,-1000.0,0.00020194,2]
[315187550,1708913451355,-1000.0,0.00020194,2]
[315187551,1708913451364,-5000.0,0.00020194,2]
[315187552,1708913451374,-5000.0,0.00020194,2]
[315187553,1708913451385,-1000.0,0.00020194,2]
[315187554,1708913451396,-1000.0,0.00020194,2]
[315187555,1708913451405,-5000.0,0.00020194,2]
[315187556,1708913451414,-5000.0,0.00020194,2]
[315187557,1708913451423,-5000.0,0.00020194,2]
[315187558,1708913451432,-5000.0,0.00020194,2]
[315187559,1708913451441,-5000.0,0.00020194,2]
[315187560,1708913451525,-5000.0,0.00020194,2]
[315187561,1708913451534,-5000.0,0.00020194,2]
[315187562,1708913451544,-5000.0,0.00020194,2]
[315187563,1708913451553,-5000.0,0.00020194,2]
[315187564,1708913451562,-1000.0,0.00020194,2]
[315187565,1708913451571,-1000.0,0.00020194,2]
[315187566,1708913451580,-1000.0,0.00020194,2]
[315187567,1708913451589,-1000.0,0.00020194,2]
[315187568,1708913451598,-1000.0,0.00020194,2]
[315187569,1708913451608,-5000.0,0.00020194,2]
[315187570,1708913451617,-5000.0,0.00020194,2]
[315187571,1708913451625,-1000.0,0.00020194,2]
[315187572,1708913451634,-5000.0,0.00020194,2]
[315187573,1708913451645,-1000.0,0.00020194,2]
[315187574,1708913451654,-5000.0,0.00020194,2]
[315187575,1708913451663,-5000.0,0.00020194,2]
[315187576,1708913451672,-5000.0,0.00020194,2]
[315187577,1708913451680,-5000.0,0.00020194,2]
[315187578,1708913451689,-1000.0,0.00020194,2]
[315187579,1708913451699,-1000.0,0.00020194,2]
[315187580,1708913451708,-5000.0,0.00020194,2]
[315187581,1708913451717,-5000.0,0.00020194,2]
[315187582,1708913451726,-5000.0,0.00020194,2]
[315187583,1708913451734,-1280.0745654,0.00020194,2]
[315187584,1708913451750,-345.62398651,0.00020194,2]
[315187586,1708913620166,298.664513,0.00018,2]
[315187662,1708914527972,129668.07673995,0.00018,2]
[315187665,1708914548325,129668.07673995,0.00018,2]
[315187666,1708914561968,31508.42335116,0.00018,2]
[315187667,1708914562004,29640.54345239,0.00018,2]
[315187668,1708914562028,3129.54859425,0.00018,2]
[315187757,1708914635358,-3071.22382621,0.00017998,2]
[315187758,1708914635379,-920.99906137,0.00017999,2]
[315187759,1708914635402,-691.70350185,0.00017999,2]
[315187760,1708914635426,-65389.56134215,0.00018,2]
[315187761,1708914635450,-403.35054111,0.000189,2]
[315187762,1708914635474,-200.0,0.00019,2]
[315187787,1708914639085,-209.17617131,0.00019078,2]
[315187789,1708914639094,-155.89152219,0.00019176,2]
[315187790,1708914639103,-197.02517615,0.00019177,2]
[315187792,1708914639112,-333.69686052,0.00019178,2]
[315187794,1708914639121,-500.0,0.00019178,2]
[315187796,1708914639130,-680.66,0.00019178,2]
[315187798,1708914639140,-500.0,0.00019178,2]
[315187800,1708914639149,-399.09330614,0.00019178,2]
[315187802,1708914639158,-500.0,0.00019178,2]
[315187804,1708914639168,-500.0,0.00019178,2]
[315187806,1708914639176,-500.0,0.00019178,2]
[315187808,1708914639185,-500.0,0.00019178,2]
[315187810,1708914639195,-542.91475933,0.00019178,2]
[315187812,1708914639204,-502.59254661,0.00019178,2]
[315187814,1708914639213,-500.0,0.00019178,2]
[315187816,1708914639222,-500.0,0.00019178,2]
[315187818,1708914639231,-548.47261146,0.00019178,2]
[315187820,1708914639240,-500.0,0.00019178,2]
[315187822,1708914639249,-390.70436853,0.00019178,2]
[315187824,1708914639258,-500.0,0.00019178,2]
[315187826,1708914639267,-501.32076136,0.00019178,2]
[315187828,1708914639276,-500.0,0.00019178,2]
[315187830,1708914639285,-500.60648921,0.00019178,2]
[315187832,1708914639294,-640.94855837,0.00019178,2]
[315187834,1708914639302,-516.12591653,0.00019178,2]
[315187836,1708914639311,-500.0,0.00019178,2]
[315187838,1708914639320,-500.0,0.00019178,2]
[315187840,1708914639329,-501.23926151,0.00019178,2]
[315187842,1708914639338,-500.0,0.00019178,2]
[315187844,1708914639346,-500.0,0.00019178,2]
[315187846,1708914639355,-500.73988973,0.00019178,2]
[315187848,1708914639365,-497.00174819,0.00019178,2]
[315187850,1708914639373,-578.17,0.00019178,2]
[315187852,1708914639382,-500.74176148,0.00019178,2]
[315187854,1708914639391,-500.0,0.00019178,2]
[315187856,1708914639399,-500.0,0.00019178,2]
[315187858,1708914639409,-500.0,0.00019178,2]
[315187860,1708914639418,-500.0,0.00019178,2]
[315187862,1708914639427,-500.0,0.00019178,2]
[315187864,1708914639436,-500.0,0.00019178,2]
[315187866,1708914639445,-500.0,0.00019178,2]
[315187868,1708914639454,-500.0,0.00019178,2]
[315187870,1708914639463,-500.0,0.00019178,2]
[315187872,1708914639472,-500.0,0.00019178,2]
[315187874,1708914639481,-501.12063121,0.00019178,2]
[315187876,1708914639489,-500.0,0.00019178,2]